[Event "Live Chess"]
[Site "Chess.com"]
[Date "2023.05.20"]
[Round "-"]
[White "lateforthesky"]
[Black "Shepherds_Pie"]
[Result "1-0"]
[WhiteElo "2092"]
[BlackElo "1922"]
[TimeControl "300"]
[EndTime "15:16:35 PDT"]
[Termination "lateforthesky won by checkmate"]

1. e4 {[%clk 0:04:59.1]} 1... e6 {[%clk 0:04:57.8]} 2. d4 {[%clk 0:04:57.6]}
2... d5 {[%clk 0:04:56.7]} 3. e5 {[%clk 0:04:56.5]} 3... c5 {[%clk 0:04:55.3]}
4. c3 {[%clk 0:04:56.1]} 4... Nc6 {[%clk 0:04:54.2]} 5. Nf3 {[%clk 0:04:55.8]}
5... Qb6 {[%clk 0:04:53.1]} 6. Bd3 {[%clk 0:04:54.8]} 6... Nh6 {[%clk 0:04:50]}
7. Bxh6 {[%clk 0:04:47.3]} 7... gxh6 {[%clk 0:04:48.4]} 8. Nbd2 {[%clk
0:04:36.7]} 8... Qxb2 {[%clk 0:04:46.4]} 9. O-O {[%clk 0:04:29.7]} 9... Qxc3
{[%clk 0:04:45.2]} 10. Bb5 {[%clk 0:04:06.7]} 10... Bd7 {[%clk 0:04:37.7]} 11.
Rc1 {[%clk 0:03:41.7]} 11... Qa5 {[%clk 0:04:35.1]} 12. Bxc6 {[%clk 0:03:36.8]}
12... Bxc6 {[%clk 0:04:31.9]} 13. Nb3 {[%clk 0:03:35.7]} 13... Qc7 {[%clk
0:04:30.8]} 14. dxc5 {[%clk 0:03:32.7]} 14... Bg7 {[%clk 0:04:26.6]} 15. Re1
{[%clk 0:03:29.7]} 15... O-O {[%clk 0:04:25.3]} 16. Qd4 {[%clk 0:03:18.6]} 16...
Qe7 {[%clk 0:04:23.2]} 17. Qg4 {[%clk 0:03:14.1]} 17... f5 {[%clk 0:04:19.2]}
18. Qf4 {[%clk 0:03:04.4]} 18... Qf7 {[%clk 0:04:12.8]} 19. Nbd4 {[%clk
0:02:59.6]} 19... Rae8 {[%clk 0:04:10.7]} 20. h4 {[%clk 0:02:55.8]} 20... Qh5
{[%clk 0:04:07.6]} 21. Nh2 {[%clk 0:02:42]} 21... Kh8 {[%clk 0:04:03.9]} 22. f3
{[%clk 0:02:40.1]} 22... Rg8 {[%clk 0:03:54.8]} 23. Rc2 {[%clk 0:02:34.3]} 23...
Bf8 {[%clk 0:03:52.8]} 24. Kh1 {[%clk 0:02:20.5]} 24... Be7 {[%clk 0:03:41.1]}
25. g3 {[%clk 0:02:07.3]} 25... Qg6 {[%clk 0:03:31.7]} 26. Rg1 {[%clk
0:02:00.6]} 26... h5 {[%clk 0:03:25.6]} 27. Nf1 {[%clk 0:01:58.1]} 27... Bf8
{[%clk 0:03:23.4]} 28. Qe3 {[%clk 0:01:45.4]} 28... Bh6 {[%clk 0:03:21.2]} 29.
f4 {[%clk 0:01:43.2]} 29... a6 {[%clk 0:03:12.5]} 30. Nh2 {[%clk 0:01:34.4]}
30... Bf8 {[%clk 0:03:09.3]} 31. Nhf3 {[%clk 0:01:29.6]} 31... h6 {[%clk
0:03:06.8]} 32. Nxc6 {[%clk 0:01:18.9]} 32... bxc6 {[%clk 0:03:04.1]} 33. Rb2
{[%clk 0:01:17.8]} 33... Qf7 {[%clk 0:02:59.7]} 34. Rb6 {[%clk 0:01:15.6]} 34...
Qc7 {[%clk 0:02:55.1]} 35. Kh2 {[%clk 0:01:12.1]} 35... Rg7 {[%clk 0:02:49.5]}
36. Rgb1 {[%clk 0:01:10.4]} 36... Be7 {[%clk 0:02:42.9]} 37. Qc3 {[%clk
0:01:05.5]} 37... Bd8 {[%clk 0:02:39.9]} 38. Nd4 {[%clk 0:00:58.3]} 38... Qf7
{[%clk 0:02:23.9]} 39. Rxc6 {[%clk 0:00:54.7]} 39... Bxh4 {[%clk 0:02:19.7]} 40.
gxh4 {[%clk 0:00:51.4]} 40... Qg6 {[%clk 0:02:18.8]} 41. Qf3 {[%clk 0:00:47.2]}
41... Reg8 {[%clk 0:02:14.8]} 42. Rxe6 {[%clk 0:00:42.1]} 42... Qg2+ {[%clk
0:02:10.4]} 43. Qxg2 {[%clk 0:00:41.2]} 43... Rxg2+ {[%clk 0:02:09.2]} 44. Kh1
{[%clk 0:00:40.3]} 44... R2g4 {[%clk 0:02:06]} 45. Nxf5 {[%clk 0:00:31.7]} 45...
Rxf4 {[%clk 0:02:02.6]} 46. Rxh6# {[%clk 0:00:30.4]} 1-0

[Event "Live Chess"]
[Site "Chess.com"]
[Date "2023.05.20"]
[Round "-"]
[White "Missedidea"]
[Black "WelshTiger"]
[Result "0-1"]
[WhiteElo "1733"]
[BlackElo "2389"]
[TimeControl "300"]
[EndTime "15:16:49 PDT"]
[Termination "WelshTiger won on time"]

1. d4 {[%clk 0:04:57.9]} 1... d5 {[%clk 0:04:56.4]} 2. c4 {[%clk 0:04:56]} 2...
e6 {[%clk 0:04:55.6]} 3. Nc3 {[%clk 0:04:54.3]} 3... c5 {[%clk 0:04:53.8]} 4.
Nf3 {[%clk 0:04:51.8]} 4... Nc6 {[%clk 0:04:52.3]} 5. cxd5 {[%clk 0:04:50.4]}
5... exd5 {[%clk 0:04:52.2]} 6. g3 {[%clk 0:04:47.8]} 6... Nf6 {[%clk
0:04:50.9]} 7. Bg2 {[%clk 0:04:46.4]} 7... Be7 {[%clk 0:04:50.3]} 8. O-O {[%clk
0:04:44.4]} 8... O-O {[%clk 0:04:49.4]} 9. Bg5 {[%clk 0:04:41.2]} 9... c4 {[%clk
0:04:48.3]} 10. Ne5 {[%clk 0:04:29.5]} 10... Be6 {[%clk 0:04:46.9]} 11. a3
{[%clk 0:04:03.9]} 11... h6 {[%clk 0:04:35.8]} 12. Bxf6 {[%clk 0:04:02.3]} 12...
Bxf6 {[%clk 0:04:34.5]} 13. Nxc6 {[%clk 0:04:01.1]} 13... bxc6 {[%clk
0:04:33.4]} 14. e4 {[%clk 0:03:58.2]} 14... dxe4 {[%clk 0:04:26.8]} 15. Nxe4
{[%clk 0:03:54]} 15... Bxd4 {[%clk 0:04:24.6]} 16. Qc2 {[%clk 0:03:40.4]} 16...
Qb6 {[%clk 0:04:18.6]} 17. Nc3 {[%clk 0:03:25.2]} 17... Rab8 {[%clk 0:04:13.5]}
18. Rad1 {[%clk 0:03:13]} 18... c5 {[%clk 0:04:05.6]} 19. Nd5 {[%clk 0:03:03.5]}
19... Qxb2 {[%clk 0:03:47.9]} 20. Qxc4 {[%clk 0:02:56.1]} 20... Qxa3 {[%clk
0:03:45.4]} 21. Rb1 {[%clk 0:02:48]} 21... Rxb1 {[%clk 0:03:41]} 22. Rxb1 {[%clk
0:02:45.8]} 22... Kh8 {[%clk 0:03:35.1]} 23. Qe2 {[%clk 0:02:33.5]} 23... Bf5
{[%clk 0:03:15.3]} 24. Rb7 {[%clk 0:02:17.6]} 24... Qa1+ {[%clk 0:03:09.1]} 25.
Bf1 {[%clk 0:02:13.4]} 25... Bh3 {[%clk 0:03:06]} 26. Nf4 {[%clk 0:02:06.8]}
26... Bxf1 {[%clk 0:03:04.3]} 27. Qxf1 {[%clk 0:02:04.6]} 27... Qxf1+ {[%clk
0:03:02]} 28. Kxf1 {[%clk 0:02:02.6]} 28... c4 {[%clk 0:02:54.3]} 29. Rc7 {[%clk
0:01:58.7]} 29... c3 {[%clk 0:02:48.9]} 30. Ne2 {[%clk 0:01:52.3]} 30... Bf6
{[%clk 0:02:46.3]} 31. Nxc3 {[%clk 0:01:50]} 31... Bxc3 {[%clk 0:02:43.2]} 32.
Rxc3 {[%clk 0:01:48.3]} 32... Ra8 {[%clk 0:02:42.8]} 33. Ra3 {[%clk 0:01:42.4]}
33... Kh7 {[%clk 0:02:41.7]} 34. Ra6 {[%clk 0:01:40.8]} 34... f6 {[%clk
0:02:40.6]} 35. Ke2 {[%clk 0:01:39.7]} 35... Kg6 {[%clk 0:02:40.1]} 36. h3
{[%clk 0:01:37.9]} 36... h5 {[%clk 0:02:39]} 37. f3 {[%clk 0:01:34]} 37... Kg5
{[%clk 0:02:37]} 38. Ke3 {[%clk 0:01:32.6]} 38... Re8+ {[%clk 0:02:34.9]} 39.
Kd4 {[%clk 0:01:29]} 39... Re7 {[%clk 0:02:32.6]} 40. Ra5+ {[%clk 0:01:19.8]}
40... Kg6 {[%clk 0:02:29.9]} 41. Ra6 {[%clk 0:01:18.1]} 41... h4 {[%clk
0:02:26.9]} 42. g4 {[%clk 0:01:08.3]} 42... Kg5 {[%clk 0:02:26.3]} 43. Ra5+
{[%clk 0:00:56.8]} 43... Kf4 {[%clk 0:02:25.4]} 44. Ra3 {[%clk 0:00:46.3]} 44...
Kg3 {[%clk 0:02:19]} 45. Kd5 {[%clk 0:00:45]} 45... Kxh3 {[%clk 0:02:15.7]} 46.
Kd6 {[%clk 0:00:42.1]} 46... Rb7 {[%clk 0:02:12.9]} 47. g5 {[%clk 0:00:34.5]}
47... Kg2 {[%clk 0:02:03.1]} 48. gxf6 {[%clk 0:00:28.6]} 48... gxf6 {[%clk
0:02:02.4]} 49. f4 {[%clk 0:00:20.7]} 49... h3 {[%clk 0:02:00.9]} 50. Ra2+
{[%clk 0:00:18.6]} 50... Kg3 {[%clk 0:01:59.9]} 51. f5 {[%clk 0:00:17.7]} 51...
h2 {[%clk 0:01:59]} 52. Ra1 {[%clk 0:00:16.1]} 52... Rh7 {[%clk 0:01:54.8]} 53.
Ra3+ {[%clk 0:00:11.3]} 53... Kf4 {[%clk 0:01:53.1]} 54. Ra4+ {[%clk 0:00:09.5]}
54... Kxf5 {[%clk 0:01:51]} 55. Ra5+ {[%clk 0:00:07.6]} 55... Kg6 {[%clk
0:01:50.1]} 56. Ra1 {[%clk 0:00:02.9]} 56... h1=Q {[%clk 0:01:48.4]} 0-1

[Event "Live Chess"]
[Site "Chess.com"]
[Date "2023.05.20"]
[Round "-"]
[White "TheSmoulderingMaster"]
[Black "nigelst"]
[Result "0-1"]
[WhiteElo "1708"]
[BlackElo "1831"]
[TimeControl "300"]
[EndTime "15:16:56 PDT"]
[Termination "nigelst won by resignation"]

1. e4 {[%clk 0:04:58.2]} 1... c6 {[%clk 0:04:58.9]} 2. d4 {[%clk 0:04:56]} 2...
d5 {[%clk 0:04:58.5]} 3. Nc3 {[%clk 0:04:54.8]} 3... dxe4 {[%clk 0:04:56.7]} 4.
Nxe4 {[%clk 0:04:54.2]} 4... Nf6 {[%clk 0:04:55.5]} 5. Nxf6+ {[%clk 0:04:52.9]}
5... exf6 {[%clk 0:04:54.5]} 6. Bc4 {[%clk 0:04:52.2]} 6... Bd6 {[%clk 0:04:53]}
7. Nf3 {[%clk 0:04:51.3]} 7... O-O {[%clk 0:04:51.9]} 8. O-O {[%clk 0:04:50.4]}
8... Re8 {[%clk 0:04:49.5]} 9. c3 {[%clk 0:04:49.5]} 9... Nd7 {[%clk 0:04:48.4]}
10. Nh4 {[%clk 0:04:46.9]} 10... g6 {[%clk 0:04:44.2]} 11. Qg4 {[%clk
0:04:42.8]} 11... Nb6 {[%clk 0:04:32]} 12. Bxf7+ {[%clk 0:04:30.6]} 12... Kxf7
{[%clk 0:04:29.9]} 13. Qd1 {[%clk 0:04:29.4]} 13... Qe7 {[%clk 0:04:22.2]} 14.
Bh6 {[%clk 0:04:27.4]} 14... Qe4 {[%clk 0:04:05.1]} 15. Qb3+ {[%clk 0:04:23.5]}
15... Be6 {[%clk 0:04:00.7]} 16. Qd1 {[%clk 0:04:07.4]} 16... Qxh4 {[%clk
0:03:58.9]} 0-1

[Event "Live Chess"]
[Site "Chess.com"]
[Date "2023.05.20"]
[Round "-"]
[White "KeithArkell"]
[Black "Cimon"]
[Result "1-0"]
[WhiteElo "2607"]
[BlackElo "1831"]
[TimeControl "300"]
[EndTime "15:17:02 PDT"]
[Termination "KeithArkell won by resignation"]

1. d4 {[%clk 0:04:58.2]} 1... Nf6 {[%clk 0:04:57]} 2. Nf3 {[%clk 0:04:57.5]}
2... g6 {[%clk 0:04:51.1]} 3. c4 {[%clk 0:04:56.6]} 3... Bg7 {[%clk 0:04:49.6]}
4. Nc3 {[%clk 0:04:55.9]} 4... d6 {[%clk 0:04:47.9]} 5. g3 {[%clk 0:04:55.2]}
5... O-O {[%clk 0:04:46.1]} 6. Bg2 {[%clk 0:04:54.6]} 6... a6 {[%clk 0:04:43.9]}
7. O-O {[%clk 0:04:53.7]} 7... Nc6 {[%clk 0:04:42]} 8. a4 {[%clk 0:04:47.6]}
8... Rb8 {[%clk 0:04:35.2]} 9. h3 {[%clk 0:04:44.6]} 9... Na5 {[%clk 0:04:19.6]}
10. b3 {[%clk 0:04:43]} 10... c5 {[%clk 0:04:17.6]} 11. Be3 {[%clk 0:04:35]}
11... Qc7 {[%clk 0:04:05.1]} 12. Rc1 {[%clk 0:04:30.1]} 12... b6 {[%clk
0:03:58.5]} 13. Bg5 {[%clk 0:04:16.4]} 13... Bb7 {[%clk 0:03:50]} 14. d5 {[%clk
0:04:02.9]} 14... Bc8 {[%clk 0:03:42.1]} 15. e4 {[%clk 0:04:00.9]} 15... Re8
{[%clk 0:03:21.3]} 16. Re1 {[%clk 0:03:59.9]} 16... h6 {[%clk 0:03:17.6]} 17.
Bf4 {[%clk 0:03:51.3]} 17... Nh5 {[%clk 0:03:13.3]} 18. Bd2 {[%clk 0:03:50.2]}
18... Nb7 {[%clk 0:03:07.7]} 19. g4 {[%clk 0:03:45.9]} 19... Nf6 {[%clk
0:03:05.4]} 20. Bf4 {[%clk 0:03:44.9]} 20... Nh7 {[%clk 0:02:52.9]} 21. e5
{[%clk 0:03:41.9]} 21... dxe5 {[%clk 0:02:36.3]} 22. Nxe5 {[%clk 0:03:40]} 22...
Nd6 {[%clk 0:02:34]} 23. Qd2 {[%clk 0:03:36.4]} 23... g5 {[%clk 0:02:31.5]} 24.
Bg3 {[%clk 0:03:35.4]} 24... f5 {[%clk 0:02:04.5]} 25. Nc6 {[%clk 0:03:32.8]}
25... f4 {[%clk 0:01:36.3]} 26. Nxb8 {[%clk 0:03:16.7]} 26... Qxb8 {[%clk
0:01:31.7]} 27. Bh2 {[%clk 0:03:13.1]} 27... Bd4 {[%clk 0:01:03.8]} 28. Ne2
{[%clk 0:03:08.6]} 28... Bg7 {[%clk 0:00:54.8]} 29. Nxf4 {[%clk 0:03:07.5]}
29... gxf4 {[%clk 0:00:53.5]} 30. Bxf4 {[%clk 0:03:06.8]} 30... b5 {[%clk
0:00:45.7]} 31. axb5 {[%clk 0:03:04.9]} 31... axb5 {[%clk 0:00:43.7]} 32. Bxh6
{[%clk 0:03:04]} 32... bxc4 {[%clk 0:00:32.2]} 33. Bxg7 {[%clk 0:03:03.1]} 33...
Kxg7 {[%clk 0:00:30.2]} 34. bxc4 {[%clk 0:03:02.4]} 34... Qb4 {[%clk 0:00:20.6]}
35. Qxb4 {[%clk 0:02:59.5]} 35... cxb4 {[%clk 0:00:19.4]} 36. c5 {[%clk
0:02:58.9]} 36... Nb5 {[%clk 0:00:17.4]} 37. Rb1 {[%clk 0:02:57.3]} 1-0

[Event "Live Chess"]
[Site "Chess.com"]
[Date "2023.05.20"]
[Round "-"]
[White "GEMdzq"]
[Black "WilliamofOrange16th"]
[Result "1-0"]
[WhiteElo "2231"]
[BlackElo "1835"]
[TimeControl "300"]
[EndTime "15:17:03 PDT"]
[Termination "GEMdzq won by resignation"]

1. e4 {[%clk 0:04:59]} 1... d6 {[%clk 0:04:55.2]} 2. d4 {[%clk 0:04:56]} 2...
Nf6 {[%clk 0:04:52.7]} 3. Nc3 {[%clk 0:04:54.6]} 3... Nbd7 {[%clk 0:04:52]} 4.
f4 {[%clk 0:04:52.1]} 4... e5 {[%clk 0:04:49.7]} 5. Nf3 {[%clk 0:04:50.5]} 5...
exd4 {[%clk 0:04:47.3]} 6. Nxd4 {[%clk 0:04:49.2]} 6... g6 {[%clk 0:04:46]} 7.
Bc4 {[%clk 0:04:47]} 7... Bg7 {[%clk 0:04:42.3]} 8. O-O {[%clk 0:04:45.7]} 8...
O-O {[%clk 0:04:38.6]} 9. Bb3 {[%clk 0:04:42.1]} 9... Nc5 {[%clk 0:04:36.5]} 10.
e5 {[%clk 0:04:37]} 10... dxe5 {[%clk 0:03:35.7]} 11. fxe5 {[%clk 0:04:35.3]}
11... Ng4 {[%clk 0:03:34.8]} 12. Bf4 {[%clk 0:04:08.7]} 12... Nxb3 {[%clk
0:03:29.3]} 13. axb3 {[%clk 0:04:07.1]} 13... Nxe5 {[%clk 0:03:28.6]} 14. Ndb5
{[%clk 0:03:59]} 14... c6 {[%clk 0:03:09.3]} 15. Qxd8 {[%clk 0:03:21.9]} 15...
Rxd8 {[%clk 0:03:09.2]} 16. Nc7 {[%clk 0:03:21]} 16... Rb8 {[%clk 0:03:04.5]}
17. Rxa7 {[%clk 0:03:19.8]} 17... Bf5 {[%clk 0:03:00]} 18. Re1 {[%clk
0:03:12.8]} 18... Ng4 {[%clk 0:02:52.1]} 19. Ne2 {[%clk 0:02:46.9]} 19... Be5
{[%clk 0:02:23.5]} 20. h3 {[%clk 0:02:43.3]} 20... Bxf4 {[%clk 0:02:17.7]} 21.
Nxf4 {[%clk 0:02:43.2]} 21... Nf6 {[%clk 0:02:10.3]} 22. b4 {[%clk 0:02:31.3]}
22... Rd7 {[%clk 0:02:06.4]} 23. Na8 {[%clk 0:02:30.3]} 23... Bxc2 {[%clk
0:01:57]} 24. Nb6 {[%clk 0:02:26.7]} 24... Rdd8 {[%clk 0:01:56.2]} 25. Re7
{[%clk 0:02:23.7]} 25... Rd1+ {[%clk 0:01:37]} 26. Kh2 {[%clk 0:02:21.5]} 26...
Rd2 {[%clk 0:01:32.8]} 27. Rexb7 {[%clk 0:02:14.6]} 27... Rxb7 {[%clk
0:01:32.7]} 28. Rxb7 {[%clk 0:02:13.9]} 28... Be4 {[%clk 0:01:31.6]} 29. h4
{[%clk 0:02:04.8]} 29... Rxb2 {[%clk 0:01:30.6]} 30. Nc4 {[%clk 0:01:58.9]}
30... Rc2 {[%clk 0:01:23.8]} 31. Nd6 {[%clk 0:01:57.5]} 31... Bd5 {[%clk
0:01:15.7]} 32. Nxd5 {[%clk 0:01:55.9]} 32... Nxd5 {[%clk 0:01:15.6]} 33. Nxf7
{[%clk 0:01:54.9]} 33... Nxb4 {[%clk 0:01:11.7]} 34. Nh6+ {[%clk 0:01:52.7]}
34... Kf8 {[%clk 0:01:10.4]} 35. Rxb4 {[%clk 0:01:51.8]} 35... c5 {[%clk
0:01:07.8]} 36. Rb7 {[%clk 0:01:49]} 36... c4 {[%clk 0:01:04.1]} 37. Ng4 {[%clk
0:01:47.9]} 37... c3 {[%clk 0:01:02.6]} 38. Rc7 {[%clk 0:01:47]} 38... Rc1
{[%clk 0:01:01.4]} 39. Ne3 {[%clk 0:01:46.1]} 39... h5 {[%clk 0:00:57.7]} 40.
Kg3 {[%clk 0:01:44.4]} 40... Ke8 {[%clk 0:00:56.9]} 41. Kf3 {[%clk 0:01:42.8]}
41... Kd8 {[%clk 0:00:55.4]} 42. Rc6 {[%clk 0:01:34.2]} 42... Kd7 {[%clk
0:00:53.1]} 43. Rxg6 {[%clk 0:01:33.1]} 43... Rh1 {[%clk 0:00:43.2]} 44. g3
{[%clk 0:01:28]} 44... Rh2 {[%clk 0:00:41.9]} 45. Rg5 {[%clk 0:01:26.3]} 45...
c2 {[%clk 0:00:40.3]} 46. Nxc2 {[%clk 0:01:25.7]} 46... Rxc2 {[%clk 0:00:39.4]}
47. Rxh5 {[%clk 0:01:25.5]} 47... Rc4 {[%clk 0:00:34.4]} 48. Re5 {[%clk
0:01:24.3]} 48... Kd6 {[%clk 0:00:32.8]} 49. Re4 {[%clk 0:01:23.2]} 49... Rc1
{[%clk 0:00:31.3]} 50. Kf4 {[%clk 0:01:20.6]} 50... Rf1+ {[%clk 0:00:29.8]} 51.
Kg5 {[%clk 0:01:19.4]} 51... Kd5 {[%clk 0:00:29.1]} 52. Re8 {[%clk 0:01:18.3]}
52... Kd6 {[%clk 0:00:28.1]} 53. h5 {[%clk 0:01:17.2]} 53... Kd7 {[%clk
0:00:27.1]} 54. Re2 {[%clk 0:01:16.5]} 1-0

[Event "Live Chess"]
[Site "Chess.com"]
[Date "2023.05.20"]
[Round "-"]
[White "CheckThis4"]
[Black "Stanbad1"]
[Result "0-1"]
[WhiteElo "2529"]
[BlackElo "2398"]
[TimeControl "300"]
[EndTime "15:17:14 PDT"]
[Termination "Stanbad1 won by resignation"]

1. c4 {[%clk 0:04:53.6]} 1... Nf6 {[%clk 0:04:58.3]} 2. Nc3 {[%clk 0:04:51.5]}
2... g6 {[%clk 0:04:57.4]} 3. e4 {[%clk 0:04:48.5]} 3... d6 {[%clk 0:04:56.3]}
4. d4 {[%clk 0:04:47.6]} 4... Bg7 {[%clk 0:04:55.5]} 5. Nge2 {[%clk 0:04:47.2]}
5... O-O {[%clk 0:04:52.9]} 6. Ng3 {[%clk 0:04:46.3]} 6... c5 {[%clk 0:04:50.9]}
7. d5 {[%clk 0:04:45.2]} 7... h5 {[%clk 0:04:50.1]} 8. Be2 {[%clk 0:04:43.1]}
8... Na6 {[%clk 0:04:48.6]} 9. O-O {[%clk 0:04:40.7]} 9... Nc7 {[%clk
0:04:46.1]} 10. h3 {[%clk 0:04:31.6]} 10... Bd7 {[%clk 0:04:44.3]} 11. Bg5
{[%clk 0:04:24.9]} 11... a6 {[%clk 0:04:42.3]} 12. a4 {[%clk 0:04:23.4]} 12...
b5 {[%clk 0:04:40.4]} 13. axb5 {[%clk 0:04:16.5]} 13... axb5 {[%clk 0:04:38.7]}
14. Rxa8 {[%clk 0:04:14.4]} 14... Qxa8 {[%clk 0:04:37.2]} 15. cxb5 {[%clk
0:04:13.5]} 15... Qa5 {[%clk 0:04:36.1]} 16. f4 {[%clk 0:04:05]} 16... Nxb5
{[%clk 0:04:33]} 17. e5 {[%clk 0:03:50.5]} 17... dxe5 {[%clk 0:04:29.3]} 18.
fxe5 {[%clk 0:03:48.7]} 18... Nxc3 {[%clk 0:04:26.1]} 19. bxc3 {[%clk
0:03:46.7]} 19... Nh7 {[%clk 0:04:24.3]} 20. Bxe7 {[%clk 0:03:44.9]} 20... Re8
{[%clk 0:04:19.9]} 21. d6 {[%clk 0:03:31.8]} 21... Bxe5 {[%clk 0:04:16.8]} 22.
Bc4 {[%clk 0:02:53.2]} 22... Qxc3 {[%clk 0:04:01.4]} 23. Bxf7+ {[%clk
0:02:48.8]} 23... Kh8 {[%clk 0:03:58.6]} 24. Ne2 {[%clk 0:01:46.4]} 24... Qe3+
{[%clk 0:03:54.2]} 25. Kh1 {[%clk 0:01:45.7]} 25... Bc6 {[%clk 0:03:47.1]} 26.
Qb3 {[%clk 0:01:07.6]} 26... Qxe2 {[%clk 0:03:32.7]} 27. Rg1 {[%clk 0:01:05.5]}
27... Ra8 {[%clk 0:03:18.5]} 28. Bd5 {[%clk 0:01:01.3]} 28... c4 {[%clk
0:03:06.7]} 29. Qxc4 {[%clk 0:00:52]} 29... Qxc4 {[%clk 0:02:57.1]} 30. Bxc4
{[%clk 0:00:51.9]} 30... Ra3 {[%clk 0:02:53.2]} 31. Rd1 {[%clk 0:00:43.1]} 31...
Rxh3+ {[%clk 0:02:49.4]} 32. Kg1 {[%clk 0:00:42.4]} 32... Rg3 {[%clk 0:02:48.6]}
33. Bd5 {[%clk 0:00:41.1]} 33... Bd7 {[%clk 0:02:42.2]} 34. Kf2 {[%clk
0:00:35.1]} 34... Rg4 {[%clk 0:02:33.9]} 35. Rb1 {[%clk 0:00:34.1]} 35... Rd4
{[%clk 0:02:28.7]} 36. Rb8+ {[%clk 0:00:32.4]} 36... Kg7 {[%clk 0:02:25.5]} 37.
Rg8+ {[%clk 0:00:31.3]} 37... Kh6 {[%clk 0:02:23.9]} 38. Bf3 {[%clk 0:00:29.7]}
38... Bxd6 {[%clk 0:02:21.1]} 39. Bd8 {[%clk 0:00:22.2]} 39... Bc5 {[%clk
0:02:12.9]} 40. Kg3 {[%clk 0:00:21.3]} 40... Bg4 {[%clk 0:02:08.7]} 41. Bc7
{[%clk 0:00:18.4]} 41... Bxf3 {[%clk 0:02:05.9]} 42. gxf3 {[%clk 0:00:18.3]}
42... Bd6+ {[%clk 0:02:04.8]} 43. Bxd6 {[%clk 0:00:17.2]} 43... Rxd6 {[%clk
0:02:04.7]} 44. Re8 {[%clk 0:00:16.2]} 44... Rf6 {[%clk 0:02:01.9]} 45. Re5
{[%clk 0:00:14]} 45... Ng5 {[%clk 0:01:59.5]} 46. f4 {[%clk 0:00:13.6]} 46...
Nf7 {[%clk 0:01:58.1]} 47. Rd5 {[%clk 0:00:12.5]} 47... Nd6 {[%clk 0:01:56.9]}
0-1